lending/lending_fUSD_20260204
["ID","MTS","AMOUNT","RATE_DAILY","PERIOD"]
[404475565,1770181840392,-500.0,0.00017,7]
[404475566,1770181840402,-500.0,0.00017,7]
[404475567,1770181840412,-500.0,0.00017,7]
[404475568,1770181840422,-500.0,0.00017,7]
[404475569,1770181840431,-500.0,0.00017,7]
[404475570,1770181840441,-500.0,0.00017,7]
[404475571,1770181840450,-500.0,0.00017,7]
[404475572,1770181840459,-500.0,0.00017,7]
[404475573,1770181840469,-500.0,0.00017,7]
[404475574,1770181840478,-500.0,0.00017,7]
[404475575,1770181840487,-500.0,0.00017,7]
[404475576,1770181840496,-500.0,0.00017,7]
[404475577,1770181840506,-500.0,0.00017,7]
[404475578,1770181840515,-500.0,0.00017,7]
[404475579,1770181840533,-500.0,0.00017,7]
[404475580,1770181840543,-500.0,0.00017,7]
[404475581,1770181840552,-500.0,0.00017,7]
[404475582,1770181840562,-500.0,0.00017,7]
[404475583,1770181840572,-500.0,0.00017,7]
[404475584,1770181840581,-500.0,0.00017,7]
[404475585,1770181840591,-500.0,0.00017,7]
[404475586,1770181840599,-500.0,0.00017,7]
[404475587,1770181840609,-500.0,0.00017,7]
[404475588,1770181840618,-500.0,0.00017,7]
[404475589,1770181840627,-500.0,0.00017,7]
[404475590,1770181840636,-500.0,0.00017,7]
[404475591,1770181840645,-500.0,0.00017,7]
[404475592,1770181840655,-500.0,0.00017,7]
[404475593,1770181840664,-500.0,0.00017,7]
[404475594,1770181840674,-500.0,0.00017,7]
[404475595,1770181840683,-500.0,0.00017,7]
[404475596,1770181840692,-500.0,0.00017,7]
[404475597,1770181840701,-500.0,0.00017,7]
[404475598,1770181840710,-500.0,0.00017,7]
[404475599,1770181840719,-500.0,0.00017,7]
[404475600,1770181840731,-500.0,0.00017,7]
[404475601,1770181840740,-500.0,0.00017,7]
[404475602,1770181840750,-500.0,0.00017,7]
[404475603,1770181840761,-500.0,0.00017,7]
[404475604,1770181840770,-500.0,0.00017,7]
[404475605,1770181840780,-500.0,0.00017,7]
[404475606,1770181840792,-500.0,0.00017,7]
[404475607,1770181840801,-500.0,0.00017,7]
[404475608,1770181840810,-500.0,0.00017,7]
[404475609,1770181840819,-500.0,0.00017,7]
[404475610,1770181840829,-500.0,0.00017,7]
[404475611,1770181840838,-500.0,0.00017,7]
[404475612,1770181840850,-500.0,0.00017,7]
[404475613,1770181840859,-500.0,0.00017,7]
[404475614,1770181840868,-500.0,0.00017,7]
[404475615,1770181840879,-500.0,0.00017,7]
[404475616,1770181840888,-500.0,0.00017,7]
[404475617,1770181840898,-500.0,0.00017,7]
[404475618,1770181840911,-500.0,0.00017,7]
[404475619,1770181840920,-500.0,0.00017,7]
[404475620,1770181840930,-500.0,0.00017,7]
[404475621,1770181840939,-500.0,0.00017,7]
[404475622,1770181840949,-500.0,0.00017,7]
[404475623,1770181840959,-500.0,0.00017,7]
[404475624,1770181840968,-500.0,0.00017,7]
[404475625,1770181840977,-174.97,0.00017,7]
[404475626,1770181840986,-500.0,0.00017,7]
[404475627,1770181840995,-500.0,0.00017,7]
[404475628,1770181841004,-500.0,0.00017,7]
[404475629,1770181841015,-500.0,0.00017,7]
[404475630,1770181841024,-500.0,0.00017,7]
[404475631,1770181841033,-500.0,0.00017,7]
[404475632,1770181841042,-500.0,0.00017,7]
[404475633,1770181841052,-500.0,0.00017,7]
[404475634,1770181841061,-500.0,0.00017,7]
[404475635,1770181841073,-500.0,0.00017,7]
[404475636,1770181841084,-408.8,0.00017,7]
[404475637,1770181841093,-151.0,0.00017,2]
[404475638,1770181841102,-159.0,0.00017,2]
[404475639,1770181841112,-151.0,0.00017,2]
[404475640,1770181841125,-151.0,0.00017,2]
[404475641,1770181841135,-151.0,0.00017,2]
[404475642,1770181841145,-151.0,0.00017,2]
[404475643,1770181841155,-151.0,0.00017,2]
[404475644,1770181841165,-151.0,0.00017,2]
[404475645,1770181841175,-500.0,0.0001709,2]
[404475646,1770181841187,-1084.77905972,0.00017096,2]
[404475647,1770181841197,-200.0,0.00017099,2]
[404475648,1770181841208,-195.12483545,0.00017099,2]
[404475649,1770181841222,-500.0,0.00017099,2]
[404475650,1770181841231,-500.0,0.00017099,2]
[404475651,1770181841241,-500.0,0.00017099,2]
[404475652,1770181841250,-209.40437684,0.00017099,2]
[404475653,1770181841262,-500.0,0.00017099,2]
[404475654,1770181841272,-1428.38747117,0.00017099,2]
[404475655,1770181841281,-500.0,0.00017099,2]
[404475656,1770181841292,-500.0,0.00017099,2]
[404475657,1770181841302,-500.0,0.00017099,2]
[404475658,1770181841312,-174.61919141,0.00017099,2]
[404475659,1770181841321,-500.0,0.00017099,2]
[404475660,1770181841331,-500.0,0.00017099,2]
[404475661,1770181841340,-500.0,0.00017099,2]
[404475662,1770181841350,-500.0,0.00017099,2]
[404475663,1770181841359,-322.6107,0.00017099,2]
[404475664,1770181841368,-151.0,0.00017099,2]
[404475665,1770181841377,-273.46262284,0.00017099,2]
[404475666,1770181841386,-209.40437684,0.00017099,2]
[404475667,1770181841396,-605.59208121,0.00017099,2]
[404475668,1770181841405,-500.0,0.00017121,2]
[404475669,1770181841414,-500.0,0.00017121,2]
[404475670,1770181841423,-450.0,0.00017138,2]
[404475671,1770181841433,-217.15233878,0.00017154,2]
[404475672,1770181841442,-1000.0,0.00017178,7]
[404475673,1770181841452,-160.0,0.00017178,7]
[404475674,1770181841461,-1084.77905972,0.00017178,2]
[404475675,1770181841470,-166.66,0.00017195,2]
[404475676,1770181841480,-225.18697532,0.00017209,2]
[404475677,1770181841489,-1084.77905972,0.00017233,2]
[404475678,1770181841498,-1000.0,0.0001726,2]
[404475679,1770181841507,-233.51889341,0.00017264,2]
[404475680,1770181841517,-200.0,0.00017274,2]
[404475681,1770181841527,-200.0,0.00017314,2]
[404475682,1770181841536,-1084.77905972,0.00017315,2]
[404475683,1770181841546,-552.0,0.00017319,2]
[404475684,1770181841556,-242.15909246,0.00017319,2]
[404475685,1770181841565,-3000.0,0.0001734,2]
[404475686,1770181841574,-487.0364942,0.00017368,2]
[404475687,1770181841583,-1084.77905972,0.0001737,2]
[404475688,1770181841593,-251.11897888,0.00017374,2]
[404475689,1770181841602,-260.4103811,0.00017429,2]
[404475690,1770181841612,-1528.98175198,0.00017448,2]
[404475691,1770181841623,-873.07935721,0.00017448,2]
[404475692,1770181841632,-160.0,0.00017452,7]
[404475693,1770181841642,-1400.0,0.00017452,7]
[404475694,1770181841651,-1084.77905972,0.00017452,2]
[404475695,1770181841660,-270.0455652,0.00017484,2]
[404475696,1770181841669,-552.0,0.00017485,2]
[404475697,1770181841680,-1084.77905972,0.00017507,2]
[404475698,1770181841690,-1000.0,0.00017534,2]
[404475699,1770181841699,-280.03725112,0.00017539,2]
[404475700,1770181841708,-552.0,0.0001754,2]
[404475701,1770181841718,-552.0,0.00017566,2]
[404475702,1770181841728,-1084.77905972,0.00017589,2]
[404475703,1770181841737,-290.39862941,0.00017594,2]
[404475704,1770181841747,-487.0,0.00017594,2]
[404475705,1770181841757,-529.11,0.00017594,2]
[404475706,1770181841766,-1084.77905972,0.00017644,2]
[404475707,1770181841775,-181.08010149,0.00017647,2]
[404475708,1770181841785,-301.1433787,0.00017649,2]
[404475709,1770181841794,-200.0,0.0001767,2]
[404475710,1770181841803,-159.58944175,0.00017677,2]
[404475711,1770181841812,-287.59995546,0.00017681,2]
[404475712,1770181841821,-677.13,0.00017714,2]
[404475713,1770181841830,-1084.77905972,0.00017726,2]
[404475714,1770181841839,-10142.1213,0.0001773,2]
[404475715,1770181841848,-345.38902329,0.00017744,2]
[404475716,1770181841858,-548.0,0.00017745,2]
[404475717,1770181841867,-3352.0,0.00017746,2]
[404475718,1770181841881,-620.06378942,0.00017751,2]
[404475719,1770181841890,-1084.77905972,0.00017781,2]
[404475720,1770181841899,-1000.0,0.00017808,2]
[404475721,1770181841908,-1178.63534639,0.00017829,5]
[404475722,1770181841917,-15565.73514495,0.0001783,2]
[404475723,1770181842066,-3271.45891884,0.00013829,2]
[404475724,1770181842078,-207.09218228,0.00013829,2]
[404475725,1770181842087,-393.62772672,0.00017744,2]
[404475726,1770181842102,-106.37227328,0.00017744,2]
[404475727,1770181842111,-1223.71012548,0.0001783,2]
[404475728,1770181842122,-4669.82032168,0.0001783,2]
[404475729,1770181842140,-789.47421459,0.0001783,2]
[404475730,1770181842152,-1393.20373301,0.0001783,2]
[404475731,1770181842163,-47833.24410587,0.0001783,2]
[404475732,1770181842172,-214.74181092,0.00017832,2]
[404475733,1770181842181,-378.83000863,0.00017832,2]
[404475734,1770181842191,-566.70703657,0.00017832,2]
[404475735,1770181842200,-766.7649,0.00017832,2]
[404475736,1770181842209,-200.0,0.00017841,2]
[404475737,1770181842221,-200.0,0.00017856,2]
[404475738,1770181842230,-1084.77905972,0.00017863,2]
[404475739,1770181842240,-552.0,0.00017869,2]
[404475740,1770181842249,-424.0,0.0001787,2]
[404475741,1770181842259,-3352.0,0.00017877,2]
[404475742,1770181842268,-3500.0,0.00017888,2]
[404475743,1770181842278,-25000.0,0.00017891,3]
[404475744,1770181842287,-151.0,0.00017897,2]
[404475745,1770181842296,-500.0,0.000179,2]
[404475746,1770181842305,-10000.0,0.000179,2]
[404475747,1770181842314,-1666.70662669,0.000179,2]
[404475748,1770181842323,-3118.48826527,0.000179,2]
[404475749,1770181842332,-25000.0,0.000179,3]
[404475750,1770181842341,-160.0,0.000179,3]
[404475751,1770181842350,-1528.98175198,0.000179,2]
[404475752,1770181842359,-228.39919254,0.000179,2]
[404475753,1770181842369,-16152.7997049,0.000179,3]
[404475754,1770181842379,-372.12126141,0.000179,2]
[404475755,1770181842388,-239.86447206,0.000179,2]
[404475756,1770181842397,-3212.11087912,0.000179,2]
[404475757,1770181842406,-873.07935721,0.000179,2]
[404475758,1770181842415,-9179.0,0.000179,2]
[404475759,1770181842424,-11903.58699076,0.00017936,2]
[404475760,1770181842433,-3352.0,0.00017949,2]
[404475761,1770181842443,-500.0,0.00017973,2]
[404475762,1770181842453,-500.0,0.00017973,2]
[404475763,1770181842462,-496.6693993,0.00017973,2]
[404475764,1770181842471,-336.59163653,0.00017973,2]
[404475765,1770181842481,-500.0,0.00017973,2]
[404475766,1770181842490,-465.90748908,0.00017973,2]
[404475767,1770181842500,-500.0,0.00017973,2]
[404475768,1770181842510,-500.0,0.00017973,2]
[404475769,1770181842519,-500.0,0.00017973,2]
[404475770,1770181842529,-500.0,0.00017973,2]
[404475771,1770181842538,-500.0,0.00017973,2]
[404475772,1770181842547,-500.0,0.00017973,2]
[404475773,1770181842557,-501.02089422,0.00017973,2]
[404475774,1770181842566,-160.61789884,0.00017973,2]
[404475775,1770181842575,-151.18993016,0.00017973,2]
[404475776,1770181842584,-500.96948842,0.00017973,2]
[404475777,1770181842593,-500.68854041,0.00017973,2]
[404475778,1770181842603,-500.0,0.00017973,2]
[404475779,1770181842613,-500.0,0.00017973,2]
[404475780,1770181842622,-322.14,0.00017976,2]
[404475781,1770181842631,-390.634617,0.00017986,2]
[404475782,1770181842640,-552.0,0.00017988,2]
[404475783,1770181842649,-409.9369716,0.0001799,2]
[404475784,1770181842658,-409.9369716,0.0001799,2]
[404475785,1770181842667,-409.9369716,0.0001799,2]
[404475786,1770181842676,-200.0,0.00017992,2]
[404475787,1770181842686,-151.0,0.00017997,2]
[404475788,1770181842695,-1000.0,0.00017999,2]
[404475789,1770181842703,-150.0,0.00017999,2]
[404475790,1770181842713,-252.00977238,0.00017999,2]
[404475791,1770181842724,-396.76821578,0.00017999,2]
[404475792,1770181842734,-1178.6353464,0.00017999,5]
[404475793,1770181842744,-300.0,0.00017999,2]
[404475794,1770181842754,-300.0,0.00017999,2]
[404475795,1770181842764,-670.68068141,0.00017999,2]
[404475796,1770181842774,-300.0,0.00017999,2]
[404475797,1770181842784,-666.0,0.00017999,2]
[404475798,1770181842794,-500.0,0.00017999,2]
[404475799,1770181842804,-500.0,0.00017999,2]
[404475800,1770181842814,-500.0,0.00017999,2]
[404475801,1770181842825,-500.0,0.00017999,2]
[404475802,1770181842834,-500.0,0.00017999,2]
[404475803,1770181842844,-500.0,0.00017999,2]
[404475804,1770181842852,-500.0,0.00017999,2]
[404475805,1770181842862,-500.0,0.00017999,2]
[404475806,1770181842871,-500.0,0.00017999,2]
[404475807,1770181842880,-500.0,0.00017999,2]
[404475808,1770181842889,-500.0,0.00017999,2]
[404475809,1770181842899,-500.0,0.00017999,2]
[404475810,1770181842908,-500.0,0.00017999,2]
[404475811,1770181842917,-500.0,0.00017999,2]
[404475813,1770181842927,-500.0,0.00017999,2]
[404475815,1770181842936,-500.0,0.00017999,2]
[404475817,1770181842945,-500.0,0.00017999,2]
[404475819,1770181842954,-500.0,0.00017999,2]
[404475820,1770181842963,-500.0,0.00017999,2]
[404475821,1770181842973,-500.0,0.00017999,2]
[404475822,1770181842982,-500.0,0.00017999,2]
[404475823,1770181842992,-500.0,0.00017999,2]
[404475824,1770181843001,-239.47366875,0.00017999,2]
[404475825,1770181843010,-300.0,0.00017999,2]
[404475826,1770181843019,-1000.0,0.00018,2]
[404475827,1770181843029,-1000.0,0.00018,2]
[404475828,1770181843038,-979.90774973,0.00018,2]
[404475829,1770181843048,-1459975.4121549,0.00018,2]
[404475830,1770181843057,-7501.02776207,0.00018,2]
[404475831,1770181843066,-1003.25311471,0.00018,4]
[404475832,1770181843076,-11170.38415248,0.00018,4]
[404475833,1770181843085,-2550.40260433,0.00018,2]
[404475834,1770181843094,-109524.07728213,0.00018,2]
[404475835,1770181843103,-2018440.1004197,0.00018,2]
[404475836,1770181843112,-1147191.2592166,0.00018,2]
[404475837,1770181843130,-621.86898814,0.00018,2]
[404475839,1770181844343,-5565.68176175,0.00017318,2]
[404475840,1770181844354,-1262580.42047321,0.00018,2]
[404475861,1770181846317,-2945.85690857,0.00018,2]
[404475863,1770181846332,-271.765,0.00018,2]
[404475872,1770181846406,-768.37495307,0.00018,2]
[404475878,1770181846569,-6516.56558495,0.00018,2]
[404475929,1770183033653,-150.0,0.00013142,2]
[404475930,1770183033664,-195.0,0.00013174,2]
[404475931,1770183033673,-1004.01,0.00013206,2]
[404475932,1770183033683,-3240.0,0.00013425,2]
[404475933,1770183033695,-873.07935727,0.00013475,2]
[404475934,1770183033705,-186.06063071,0.00013475,2]
[404475935,1770183033715,-3241.61205425,0.00013475,2]
[404475936,1770183033726,-1193.54059971,0.00013475,2]
[404475937,1770183033736,-239.86447206,0.00013475,2]
[404475938,1770183033745,-1360.53291733,0.00013475,2]
[404475939,1770183033757,-1456.93284746,0.00013475,2]
[404475942,1770183038368,-847.0,0.00013475,2]
[404475943,1770183038424,-770.68688917,0.00013475,2]
[404475944,1770183038434,-2639.8541834,0.00013475,2]
[404475945,1770183038444,-11536.16940941,0.00013504,2]
[404475946,1770183038453,-500.0,0.00013551,2]
[404475947,1770183038463,-647.52299351,0.00013551,2]
[404475948,1770183038472,-500.0,0.00013551,2]
[404475949,1770183038481,-359.41491161,0.00013551,2]
[404475950,1770183038490,-500.0,0.00013551,2]
[404475951,1770183038500,-500.0,0.00013551,2]
[404475952,1770183038510,-500.0,0.00013551,2]
[404475953,1770183038519,-500.0,0.00013551,2]
[404475954,1770183038529,-500.0,0.00013551,2]
[404475955,1770183038539,-500.0,0.00013551,2]
[404475956,1770183038548,-500.0,0.00013551,2]
[404475957,1770183038561,-500.0,0.00013551,2]
[404475958,1770183038571,-500.0,0.00013551,2]
[404475959,1770183038581,-500.0,0.00013551,2]
[404475960,1770183038590,-500.0,0.00013551,2]
[404475962,1770183038599,-500.0,0.00013551,2]
[404475963,1770183038609,-500.0,0.00013551,2]
[404475964,1770183038622,-500.0,0.00013551,2]
[404475965,1770183038632,-500.0,0.00013551,2]
[404475966,1770183038641,-500.0,0.00013551,2]
[404475967,1770183038650,-500.0,0.00013551,2]
[404475968,1770183038661,-500.0,0.00013551,2]
[404475969,1770183038671,-500.0,0.00013551,2]
[404475970,1770183038680,-500.0,0.00013551,2]
[404475971,1770183038690,-500.0,0.00013551,2]
[404475972,1770183038700,-500.0,0.00013551,2]
[404475973,1770183038709,-500.0,0.00013551,2]
[404475974,1770183038719,-500.0,0.00013551,2]
[404475975,1770183038728,-500.0,0.00013551,2]
[404475976,1770183038737,-500.0,0.00013551,2]
[404475977,1770183038748,-500.0,0.00013551,2]
[404475978,1770183038757,-500.0,0.00013551,2]
[404475979,1770183038767,-500.0,0.00013551,2]
[404475980,1770183038776,-500.0,0.00013551,2]
[404475981,1770183039068,-500.0,0.00013551,2]
[404475982,1770183039094,-500.0,0.00013551,2]
[404475983,1770183039103,-500.0,0.00013551,2]
[404475984,1770183039113,-500.0,0.00013551,2]
[404475985,1770183039123,-500.0,0.00013551,2]
[404475986,1770183039132,-500.0,0.00013551,2]
[404475987,1770183039142,-500.0,0.00013551,2]
[404475988,1770183039151,-500.0,0.00013551,2]
[404475989,1770183039160,-500.0,0.00013551,2]
[404475990,1770183039169,-500.0,0.00013551,2]
[404475991,1770183039179,-500.0,0.00013551,2]
[404475992,1770183039188,-500.0,0.00013551,2]
[404475993,1770183039202,-226.61799188,0.00013551,2]
[404475994,1770183039212,-500.0,0.00013551,2]
[404475995,1770183039221,-500.0,0.00013551,2]
[404475996,1770183039230,-500.0,0.00013551,2]
[404475997,1770183039240,-500.0,0.00013551,2]
[404475998,1770183039249,-500.0,0.00013551,2]
[404475999,1770183039260,-500.0,0.00013551,2]
[404476000,1770183039270,-500.0,0.00013551,2]
[404476001,1770183039281,-500.0,0.00013551,2]
[404476002,1770183039290,-500.0,0.00013551,2]
[404476003,1770183039300,-150.0,0.00013551,2]
[404476004,1770183039310,-218.57,0.00013651,2]
[404476005,1770183039319,-333.34132537,0.00013675,2]
[404476006,1770183039328,-345.38902329,0.00013698,2]
[404476007,1770183039337,-321.46,0.00013699,2]
[404476008,1770183039347,-151.0,0.00013748,2]
[404476009,1770183039358,-151.0,0.00013748,2]
[404476010,1770183039367,-151.0,0.00013748,2]
[404476011,1770183039376,-151.0,0.00013748,2]
[404476012,1770183039384,-151.0,0.00013748,2]
[404476013,1770183039394,-151.0,0.00013748,2]
[404476014,1770183039403,-151.0,0.00013748,2]
[404476015,1770183039412,-151.0,0.00013748,2]
[404476016,1770183039421,-151.0,0.00013748,2]
[404476017,1770183039431,-151.0,0.00013748,2]
[404476018,1770183039440,-151.0,0.00013748,2]
[404476019,1770183039449,-666.0,0.00013753,2]
[404476020,1770183039458,-295.16850866,0.00013753,2]
[404476021,1770183039467,-617.002409,0.00013753,2]
[404476022,1770183039477,-187.38700343,0.00013753,2]
[404476023,1770183039487,-140607.47789818,0.00013754,2]
[404476024,1770183039497,-1178.63534639,0.00013755,5]
[404476025,1770183039506,-1178.63534639,0.00013755,5]
[404476026,1770183039515,-1178.6353464,0.00013755,5]
[404476027,1770183039524,-1909.98,0.00013775,2]
[404476028,1770183039534,-214.74181092,0.000139,2]
[404476029,1770183039544,-378.83000863,0.000139,2]
[404476030,1770183039553,-218.57,0.00013925,2]
[404476031,1770183039566,-873.07935721,0.00013967,2]
[404476032,1770183039575,-6978.50655732,0.00013999,2]
[404476033,1770183039585,-4435.15265389,0.00014107,2]
[404476034,1770183039594,-4435.15265389,0.00014107,2]
[404476035,1770183039604,-218.57,0.00014199,2]
[404476036,1770183039615,-321.46,0.00014384,2]
[404476037,1770183039628,-10333.78739574,0.0001439,2]
[404476038,1770183039637,-600.0,0.00014456,2]
[404476039,1770183039647,-600.0,0.00014456,2]
[404476040,1770183039657,-2500.0,0.00014456,2]
[404476041,1770183039667,-2500.0,0.00014456,2]
[404476042,1770183039676,-2500.0,0.00014456,2]
[404476043,1770183039687,-2500.0,0.00014456,2]
[404476044,1770183039696,-2500.0,0.00014456,2]
[404476045,1770183039706,-600.0,0.00014456,2]
[404476046,1770183039715,-600.0,0.00014456,2]
[404476047,1770183039726,-195.0,0.00014456,2]
[404476048,1770183039735,-300.0,0.00014456,2]
[404476049,1770183039745,-600.0,0.00014456,2]
[404476050,1770183039754,-873.07935721,0.00014458,2]
[404476051,1770183039764,-218.57,0.00014473,2]
[404476052,1770183039776,-300.0,0.00014527,2]
[404476053,1770183039786,-3531.78627076,0.00014536,2]
[404476054,1770183039796,-509.04322248,0.000146,2]
[404476055,1770183039806,-504.53493259,0.000146,2]
[404476056,1770183039816,-507.62751642,0.000146,2]
[404476057,1770183039825,-500.0,0.000146,2]
[404476058,1770183039835,-333.34132533,0.00014731,2]
[404476059,1770183039844,-4435.15265389,0.00014739,2]
[404476060,1770183039854,-218.57,0.00014747,2]
[404476061,1770183039865,-873.07935721,0.0001495,2]
[404476062,1770183039875,-3141.93,0.0001499,2]
[404476063,1770183039888,-3141.93,0.0001499,2]
[404476064,1770183039898,-3141.93,0.0001499,2]
[404476065,1770183039908,-3141.93,0.0001499,2]
[404476066,1770183039917,-3141.93,0.0001499,2]
[404476067,1770183039927,-250.0,0.00015,2]
[404476068,1770183039937,-2052.22892566,0.00015,2]
[404476069,1770183039946,-2142.26330442,0.00015,14]
[404476070,1770183039956,-7989.56617431,0.00015,2]
[404476071,1770183039965,-249348.30891466,0.00015,3]
[404476072,1770183039990,-493.17330366,0.00015,3]
[404476073,1770183040001,-583.72879,0.00015,3]
[404476077,1770183040370,-10000.0,0.00015,3]
[404476078,1770183040703,-418.54789703,0.00015,3]
[404476079,1770183040715,-53668.42871831,0.00015,3]
[404476080,1770183040724,-3531.78627076,0.00015017,2]
[404476081,1770183040734,-218.57,0.00015021,2]
[404476082,1770183040744,-11536.16940941,0.00015022,2]
[404476083,1770183040754,-321.46,0.00015068,2]
[404476084,1770183040774,-502.0,0.00015123,2]
[404476085,1770183040784,-1000.0,0.00015148,2]
[404476086,1770183040794,-322.14,0.00015176,2]
[404476087,1770183040804,-218.57,0.00015295,2]
[404476088,1770183040814,-4435.15265389,0.00015371,2]
[404476089,1770183040826,-873.07935721,0.00015442,2]
[404476090,1770183040836,-3531.78627076,0.00015497,2]
[404476091,1770183040846,-218.57,0.00015569,2]
[404476092,1770183040856,-2639.8541834,0.00015688,2]
[404476093,1770183040866,-1500.0,0.00015696,2]
[404476094,1770183040876,-321.46,0.00015753,2]
[404476095,1770183040886,-333.34132533,0.00015788,2]
[404476096,1770183040896,-195.72251223,0.00015807,2]
[404476097,1770183040906,-1000.0,0.00015808,2]
[404476098,1770183040915,-218.57,0.00015843,2]
[404476099,1770183040925,-288.19,0.00015918,2]
[404476100,1770183040941,-873.07935721,0.00015933,2]
[404476101,1770183040951,-3531.78627076,0.00015978,2]
[404476102,1770183040960,-409.9369716,0.0001599,2]
[404476103,1770183040970,-1252974.97665461,0.00016,4]
[404476104,1770183040980,-160.0,0.00016,3]
[404476105,1770183040990,-4435.15265389,0.00016004,2]
[404476106,1770183041000,-1400.0,0.00016082,2]
[404476107,1770183041010,-218.57,0.00016117,2]
[404476108,1770183041020,-500.0,0.00016244,2]
[404476109,1770183041030,-2000.0,0.00016244,2]
[404476110,1770183041041,-1000.0,0.00016249,2]
[404476111,1770183041051,-500.0,0.00016356,2]
[404476112,1770183041061,-218.57,0.00016391,2]
[404476113,1770183041071,-873.07935721,0.00016425,2]
[404476114,1770183041082,-321.46,0.00016438,2]
[404476115,1770183041093,-3531.78627076,0.00016458,2]
[404476116,1770183041103,-164.0,0.000165,2]
[404476117,1770183041113,-164.0,0.000165,2]
[404476118,1770183041123,-1000.0,0.00016505,2]
[404476119,1770183041134,-11536.16940941,0.00016541,2]
[404476120,1770183041145,-500.0,0.0001666,2]
[404476121,1770183041157,-218.57,0.00016665,2]
[404476122,1770183041167,-160.0,0.0001671,2]
[404476123,1770183041178,-165.74,0.00016712,2]
[404476124,1770183041189,-2500.0,0.00016792,2]
[404476125,1770183041199,-333.34132533,0.00016844,2]
[404476126,1770183041212,-164.0,0.0001688,2]
[404476127,1770183041223,-164.0,0.0001688,2]
[404476128,1770183041232,-873.07935721,0.00016917,2]
[404476129,1770183041242,-3531.78627076,0.00016939,2]
[404476130,1770183041252,-218.57,0.00016939,2]
[404476131,1770183041263,-411.23606988,0.00016999,2]
[404476132,1770183041274,-300.0,0.00016999,2]
[404476133,1770183041284,-670.68068141,0.00016999,2]
[404476134,1770183041295,-300.0,0.00016999,2]
[404476135,1770183041304,-500.0,0.00017,7]
[404476136,1770183041319,-500.0,0.00017,7]
[404476137,1770183041329,-500.0,0.00017,7]
[404476138,1770183041339,-500.0,0.00017,7]
[404476139,1770183041348,-500.0,0.00017,7]
[404476140,1770183041358,-500.0,0.00017,7]
[404476141,1770183041368,-500.0,0.00017,7]
[404476142,1770183041378,-500.0,0.00017,7]
[404476143,1770183041387,-500.0,0.00017,7]
[404476144,1770183041397,-500.0,0.00017,7]
[404476145,1770183041406,-500.0,0.00017,7]
[404476146,1770183041417,-500.0,0.00017,7]
[404476147,1770183041427,-500.0,0.00017,7]
[404476148,1770183041437,-500.0,0.00017,7]
[404476149,1770183041446,-500.0,0.00017,7]
[404476150,1770183041456,-500.0,0.00017,7]
[404476151,1770183041465,-500.0,0.00017,7]
[404476152,1770183041475,-500.0,0.00017,7]
[404476153,1770183041484,-500.0,0.00017,7]
[404476154,1770183041494,-500.0,0.00017,7]
[404476155,1770183041504,-500.0,0.00017,7]
[404476156,1770183041513,-500.0,0.00017,7]
[404476157,1770183041523,-500.0,0.00017,7]
[404476158,1770183041533,-500.0,0.00017,7]
[404476159,1770183041542,-500.0,0.00017,7]